bitfinex/quotes_ETHUSD_20250411
["timestamp","ask_amount","ask_price","bid_price","bid_amount"]
[1744391852667,0.53073745,1568.7,1568.6,8.365934]
[1744391853068,0.53073745,1568.7,1568.6,11.98965595]
[1744391853266,0.3968748,1568.7,1568.6,11.98965595]
[1744391853644,0.52979555,1568.7,1568.6,11.98965595]
[1744391854192,0.52979555,1568.7,1568.6,21.67839253]
[1744391854489,0.3968748,1568.7,1568.6,21.61465595]
[1744391854655,0.3968748,1568.7,1568.6,6.37511]
[1744391855058,0.53054121,1568.7,1568.6,6.37511]
[1744391855853,6.90529121,1568.7,1568.4,6.3759]
[1744391856049,0.7888,1568.6,1568.4,12.75168]
[1744391856272,0.1321755,1568.5,1568.4,12.75168]
[1744391856479,0.1321755,1568.5,1568.4,6.37578]
[1744391856659,0.1321755,1568.5,1568.3,6.625]
[1744391856660,6.5077855,1568.5,1568.3,6.625]
[1744391856984,6.5077855,1568.5,1568.2,12.75324]
[1744391857168,0.8016,1568.4,1568.2,6.37655]
[1744391857486,0.12982078,1568.3,1568.1,6.37703]
[1744391857667,0.8016,1568.2,1568.0,19.37988]
[1744391857871,0.12694529,1568.1,1568.0,6.625]
[1744391858072,0.12694529,1568.1,1568.0,13.00255]
[1744391858395,6.37819,1567.9,1567.7,5.52533047]
[1744391858561,7.797479,1567.8,1567.7,5.52533047]
[1744391858757,7.797479,1567.8,1567.4,12.7597]
[1744391858758,7.94633792,1567.8,1567.4,12.7597]
[1744391859085,1.56797792,1567.8,1567.5,12.75861]
[1744391859289,0.93015892,1567.8,1567.5,6.37918]
[1744391859448,7.30867892,1567.8,1567.5,6.37918]
[1744391859653,7.30867892,1567.8,1567.4,6.3799]
[1744391859853,6.37889,1567.7,1567.4,6.37984]
[1744391860053,0.14593639,1567.6,1567.4,12.75969]
[1744391860288,0.14593639,1567.6,1567.4,6.37984]
[1744391860892,0.14593639,1567.6,1567.3,11.90565047]
[1744391861099,0.7723,1567.5,1567.3,5.52533047]
[1744391861262,0.91554356,1567.5,1567.3,5.52533047]
[1744391861623,0.91554356,1567.5,1567.2,12.76132]
[1744391861893,0.7723,1567.5,1567.2,12.76132]
[1744391862060,0.7723,1567.5,1567.2,12.76126]
[1744391862798,0.7656,1567.7,1567.4,6.37972]
[1744391862999,0.7656,1567.7,1567.2,6.37978597]
[1744391863292,0.90902549,1567.7,1567.6,6.37917]
[1744391863860,0.14342549,1567.7,1567.6,6.37917]
[1744391864196,0.765,1567.9,1567.6,6.37917]
[1744391864397,0.14279296,1567.7,1567.6,6.37917]
[1744391864697,0.765,1567.9,1567.7,6.37856]
[1744391865195,0.765,1567.9,1567.6,12.75816]
[1744391865409,0.765,1567.9,1567.6,6.37908]
[1744391865895,0.765,1567.9,1567.6,6.37904]
[1744391866200,7.14296,1567.9,1567.6,12.75808]
[1744391866369,8.495015,1567.9,1567.5,6.37952]
[1744391866573,6.37849,1567.8,1567.5,6.37952]
[1744391866761,6.37849,1567.8,1567.4,13.00292]
[1744391866959,6.37849,1567.8,1567.4,13.00282]
[1744391866960,0.7685,1567.6,1567.4,13.00282]
[1744391867459,6.37962,1567.5,1566.8,6.38222]
[1744391867762,7.15002,1567.1,1566.7,6.38277]
[1744391867988,7.14997,1567.1,1566.7,12.7653]
[1744391868196,13.5315,1567.1,1566.7,6.38264]
[1744391868499,13.5315,1567.1,1566.5,6.01268317]
[1744391868500,6.38223,1566.9,1566.5,6.8708527]
[1744391868797,0.7685,1566.8,1566.6,12.76634]
[1744391869097,0.7685,1566.8,1566.7,6.38284]
[1744391869506,0.7685,1566.8,1566.6,12.76621]
[1744391870267,0.7685,1566.8,1566.4,6.3839]
[1744391870468,1.483576,1566.8,1566.6,6.38304]
[1744391870682,0.7685,1566.8,1566.6,6.38304]
[1744391871283,0.7685,1566.8,1566.6,12.76609]
[1744391871596,0.7685,1566.8,1566.7,6.38284]
[1744391871809,0.7909,1567.0,1566.7,12.76568]
[1744391871974,0.7909,1567.0,1566.9,6.38202]
[1744391872299,0.7909,1567.0,1566.7,6.38277]
[1744391872497,7.17254,1567.0,1566.5,6.38345]
[1744391872704,7.099314,1566.9,1566.5,12.76692]
[1744391872917,7.099314,1566.9,1566.5,6.38345]
[1744391873197,7.099314,1566.9,1566.6,6.38324]
[1744391873198,0.7568,1566.8,1566.6,6.38324]
[1744391873504,0.7568,1566.8,1566.6,6.38308]
[1744391874265,0.7568,1566.8,1566.5,12.76712]
[1744391874596,1.5424104,1566.8,1566.5,6.38356]
[1744391874803,1.5424104,1566.8,1566.5,12.76703]
[1744391875100,1.5424104,1566.8,1566.5,6.38347]
[1744391875410,7.9248904,1566.8,1566.5,6.38347]
[1744391876173,6.3831,1566.7,1566.2,6.38472]
[1744391876477,6.38325,1566.6,1566.3,6.38444]
[1744391876700,0.8147,1566.5,1566.3,6.38444]
[1744391876903,0.8147,1566.5,1566.3,6.3843]
[1744391877626,7.19846,1566.5,1566.1,6.43513]
[1744391877827,2.172879,1566.5,1566.3,6.38444]
[1744391878139,0.8147,1566.5,1566.3,6.38444]
[1744391878793,0.8147,1566.5,1566.4,6.38406]
[1744391879533,0.8147,1566.5,1566.3,6.38434]
[1744391879889,0.8147,1566.5,1566.3,12.76861]
[1744391880321,3.7992,1566.7,1566.4,12.76812]
[1744391880598,5.55873204,1566.7,1566.4,12.76812]
[1744391881235,5.55873204,1566.7,1566.5,6.38363]
[1744391881439,0.7992,1566.7,1566.6,6.38325]
[1744391881596,3.0,1566.9,1566.6,6.38309]
[1744391881597,3.7992,1566.9,1566.6,6.38309]
[1744391881798,3.7992,1566.9,1566.5,6.38356]
[1744391882027,6.76238,1566.8,1566.4,12.76786]
[1744391882234,7.21101,1566.7,1566.3,6.38439]
[1744391882538,6.3834,1566.6,1566.2,6.38473]
[1744391882827,13.59406,1566.7,1566.3,6.38435]
[1744391883029,14.991458,1566.7,1566.3,6.38435]
[1744391883194,8.608408,1566.7,1566.3,12.76865]
[1744391883394,14.991618,1566.7,1566.3,6.38432]
[1744391883595,6.38342,1566.6,1566.2,6.38487]
[1744391883794,12.76701,1566.6,1566.2,12.76959]
[1744391884028,6.3838,1566.5,1566.1,6.43515]
[1744391884218,8.6514608,1566.6,1566.3,6.38447]
[1744391884420,2.2681508,1566.6,1566.3,12.76882]
[1744391884592,2.2681508,1566.6,1566.4,6.38401]
[1744391884795,0.7689,1566.6,1566.4,6.38401]
[1744391885037,0.7689,1566.6,1566.5,6.38365]
[1744391885222,4.17852,1566.8,1566.5,12.76714]
[1744391885534,0.7986,1566.8,1566.5,6.38349]
[1744391885708,7.899232,1566.8,1566.4,12.76795]
[1744391886617,1.516672,1566.8,1566.5,6.38363]
[1744391886813,0.7986,1566.8,1566.6,6.3831]
[1744391886999,0.7986,1566.8,1566.3,7.16056]
[1744391887203,0.7986,1566.8,1566.5,6.38354]
[1744391887408,0.7986,1566.8,1566.5,12.76708]
[1744391887608,0.7986,1566.8,1566.5,6.38354]
[1744391887828,1.516683,1566.8,1566.5,12.76707]
[1744391888145,1.516683,1566.8,1566.6,6.38324]
[1744391888438,0.7503,1567.4,1566.8,6.38229]
[1744391888637,6.38092,1567.2,1566.8,12.7646]
[1744391888839,7.13164,1567.1,1566.7,6.38267]
[1744391889132,2.10155,1567.1,1566.8,6.38231]
[1744391889338,2.10155,1567.1,1566.8,12.76461]
[1744391889535,2.10155,1567.1,1566.8,6.3823]
[1744391889834,2.10155,1567.1,1566.9,6.38169]
[1744391889999,0.7503,1567.1,1566.9,12.76356]
[1744391890194,3.7703,1567.3,1567.0,12.7631]
[1744391890400,0.7703,1567.3,1567.1,6.38107]
[1744391891025,0.7706,1567.5,1567.2,6.3808]
[1744391891223,3.086419,1567.5,1567.2,6.3808]
[1744391891427,0.7706,1567.5,1567.3,6.38027]
[1744391891628,6.629,1567.6,1567.3,12.76054]
[1744391891829,0.7534,1567.4,1566.9,3.8212]
[1744391892042,0.7534,1567.4,1567.1,6.38096]
[1744391892347,7.13343,1567.4,1567.0,6.38143]
[1744391892503,3.713343,1567.3,1567.0,12.76291]
[1744391892704,0.7534,1567.4,1567.1,0.06380982]
[1744391892926,0.7534,1567.4,1567.2,6.38062]
[1744391893721,0.7534,1567.4,1566.9,6.38202]
[1744391893918,0.7622,1567.2,1566.9,6.38201]
[1744391894144,0.7622,1567.2,1567.1,6.38121]
[1744391894342,0.7622,1567.4,1567.1,6.38121]
[1744391894510,7.14223,1567.4,1567.1,6.38121]
[1744391894834,13.52238,1567.4,1567.0,6.3816]
[1744391895149,13.52243,1567.4,1567.0,12.76295]
[1744391895306,8.494473,1567.4,1567.0,12.76295]
[1744391895646,6.3804,1567.3,1566.9,7.15045]
[1744391895830,0.7516,1567.1,1566.8,12.76463]
[1744391896200,0.7516,1567.1,1566.8,6.38231]
[1744391896421,7.13283,1567.1,1566.8,6.38231]
[1744391896640,7.846113,1567.1,1566.8,6.38231]
[1744391896835,1.464883,1567.1,1566.8,6.38231]
[1744391897206,14.227763,1567.1,1566.7,12.76544]
[1744391897937,7.846213,1567.1,1566.7,12.76544]
[1744391898137,7.846213,1567.1,1566.8,6.3824]
[1744391898446,7.1662613,1567.0,1566.7,6.38272]
[1744391898739,6.38256,1566.8,1566.4,6.38387]
[1744391899106,6.38256,1566.8,1566.4,12.7678]
[1744391899312,7.17422,1566.9,1566.5,6.38363]
[1744391899555,0.7921,1566.9,1566.6,12.76624]
[1744391900223,0.7921,1566.9,1566.8,6.38243]
[1744391900422,7.13662,1567.1,1566.8,6.38243]
[1744391900827,6.38176,1567.0,1566.7,6.38264]
[1744391901038,6.38176,1567.0,1566.7,12.76537]
[1744391901350,6.38176,1567.0,1566.7,12.76536]
[1744391902217,6.38203,1566.9,1566.6,14.832104]
[1744391902461,6.38276,1566.8,1566.4,7.18622]
[1744391902658,7.19884,1566.9,1566.5,6.44741199]
[1744391902966,7.19884,1566.9,1566.6,6.38302]
[1744391903260,0.8167,1566.9,1566.7,6.38283]
[1744391903455,0.8167,1566.9,1566.5,6.38346]
[1744391903630,7.19891,1566.9,1566.5,13.485606]
[1744391903826,7.19891,1566.9,1566.5,7.102026]
[1744391904161,0.8167,1566.9,1566.7,6.38277]
[1744391904458,7.19879,1566.9,1566.6,12.76625]
[1744391904759,13.58095,1566.9,1566.6,6.38312]
[1744391904928,8.556935,1566.9,1566.4,0.8022]
[1744391905252,12.76519,1566.8,1566.5,6.38346]
[1744391905469,6.38288,1566.7,1566.4,13.57008]
[1744391905618,0.8131,1566.7,1566.2,6.38468]
[1744391905820,7.16231,1566.4,1566.1,6.43515]
[1744391906019,7.16231,1566.4,1566.1,7.154105]
[1744391906262,0.7781,1566.4,1566.1,7.154105]
[1744391906428,0.7781,1566.4,1566.2,6.38485]
[1744391906850,0.7781,1566.4,1566.1,7.154105]
[1744391906851,7.16218,1566.4,1566.1,7.154105]
[1744391907038,7.16218,1566.4,1566.1,6.43515]
[1744391907243,13.54653,1566.4,1566.1,6.43515]
[1744391907443,6.38448,1566.3,1566.1,0.05]
[1744391908284,0.7781,1566.4,1566.2,6.38482]
[1744391908658,0.7781,1566.4,1566.2,6.38475]
[1744391908856,0.7673,1566.6,1566.4,6.38406]
[1744391909069,0.7673,1566.6,1566.4,12.76812]
[1744391909269,0.7673,1566.6,1566.4,6.38393]
[1744391909484,13.75894,1566.8,1566.5,6.38346]
[1744391909905,20.1416,1566.8,1566.4,12.768]
[1744391910048,12.76591,1566.7,1566.3,13.407175]
[1744391910244,6.38326,1566.6,1566.3,13.407185]
[1744391910497,6.38285,1566.7,1566.4,6.38403]
[1744391910672,13.75894,1566.8,1566.4,6.38403]
[1744391910886,13.75894,1566.8,1566.5,6.38363]
[1744391911389,20.14153,1566.8,1566.4,12.76806]
[1744391911686,12.76602,1566.7,1566.3,13.407175]
[1744391911872,6.38285,1566.7,1566.4,6.38398]
[1744391912079,6.38329,1566.6,1566.3,7.022865]
[1744391912254,6.38329,1566.6,1566.3,13.407255]
[1744391912456,6.38285,1566.7,1566.4,6.384]
[1744391912788,6.38285,1566.7,1566.4,6.38396]
[1744391913086,7.3764,1566.8,1566.5,6.38344]
[1744391913287,7.3764,1566.8,1566.4,7.7246565]
[1744391913288,20.14177,1566.8,1566.4,7.7246565]
[1744391913448,20.14177,1566.8,1566.4,14.1085865]
[1744391913651,20.1418,1566.8,1566.5,6.38365]
[1744391914050,13.75899,1566.8,1566.5,6.38365]
[1744391914259,7.3764,1566.8,1566.5,12.76708]
[1744391914464,7.3764,1566.8,1566.6,12.76631]
[1744391914881,7.3764,1566.8,1566.6,6.38312]
[1744391915102,7.3764,1566.8,1566.6,12.76624]
[1744391915300,7.3764,1566.8,1566.6,6.38312]
[1744391917007,7.3764,1566.8,1566.5,14.94875565]
[1744391917804,7.3764,1566.8,1566.5,8.56520565]
[1744391918018,13.7589,1566.8,1566.5,7.79430565]
[1744391918574,13.7589,1566.8,1566.5,14.17784565]
[1744391918775,13.75894,1566.8,1566.5,14.17784565]
[1744391918971,6.38291,1566.7,1566.4,0.7601]
[1744391919283,13.75894,1566.8,1566.4,13.52799]
[1744391919484,6.38286,1566.7,1566.4,7.14403]
[1744391919918,6.38381,1566.5,1566.2,0.7501]
[1744391920219,7.18688,1566.2,1566.1,0.05]
[1744391920910,6.38691,1565.7,1565.6,5.52533047]
[1744391921113,14.40288974,1565.7,1565.6,5.52533047]
[1744391921283,14.95288974,1565.7,1565.6,5.52533047]
[1744391922081,10.13851,1565.7,1565.6,5.52533047]
[1744391922281,5.404121,1565.7,1565.6,5.52533047]
[1744391922481,11.791031,1565.7,1565.6,5.52533047]
[1744391922698,2.404121,1565.7,1565.6,5.52533047]
[1744391922881,0.7516,1565.7,1565.6,5.52533047]
[1744391923685,10.21525,1565.8,1565.6,5.52533047]
[1744391923886,6.38691,1565.7,1565.6,5.52533047]
[1744391924324,10.15731,1565.7,1565.6,5.52533047]
[1744391924622,7.15813,1565.5,1565.4,6.80040674]
[1744391924925,21.59950974,1565.5,1565.4,6.80040674]
[1744391925424,21.59950974,1565.5,1565.1,0.05]
[1744391925425,6.38895,1565.2,1565.1,0.05]
[1744391926017,15.77755,1565.3,1565.1,0.05]
[1744391926224,1.577755,1565.2,1565.1,0.05]
[1744391926723,8.764205,1565.2,1565.1,0.05]
[1744391926889,11.764205,1565.2,1565.1,0.05]
[1744391928824,16.60158474,1565.2,1565.1,0.05]
[1744391929227,18.416205,1565.2,1565.1,0.05]
[1744391929525,11.787205,1565.2,1565.1,0.05]
[1744391929831,18.416205,1565.2,1565.1,0.05]
[1744391931801,18.966205,1565.2,1565.1,0.05]
[1744391932005,23.23058474,1565.2,1565.1,0.05]
[1744391933074,6.39018,1564.9,1564.8,0.03337]
[1744391933232,14.43295974,1564.9,1564.8,0.03337]
[1744391933394,10.64183654,1564.9,1564.8,0.03337]
[1744391934598,15.45621628,1564.9,1564.8,0.03337]
[1744391937851,0.2,1565.4,1564.8,0.03337]
[1744391938044,5.0,1565.6,1565.3,0.7767]
[1744391938239,0.5,1565.6,1565.3,0.7767]
[1744391938440,6.38774,1565.5,1565.0,7.20799]
[1744391938641,6.38774,1565.5,1565.0,13.59762]
[1744391938947,6.38816,1565.4,1565.0,7.20799]
[1744391939107,12.77659,1565.4,1565.0,0.8184]
[1744391939311,6.38816,1565.4,1565.0,0.8184]
[1744391939508,0.638816,1565.3,1565.0,0.8184]
[1744391940854,0.638816,1565.3,1565.0,7.20808]
[1744391941051,12.77577,1565.5,1565.0,7.20808]
[1744391941219,6.38817,1565.4,1565.0,0.8184]
[1744391941615,12.7766,1565.4,1565.0,0.8184]
[1744391941823,12.77657,1565.4,1565.0,0.8184]
[1744391942036,6.38899,1565.2,1565.0,0.8184]
[1744391942241,0.638899,1565.1,1565.0,0.8184]
[1744391942417,0.638899,1565.1,1564.8,0.82007]
[1744391942747,7.028289,1565.1,1564.8,0.82007]
[1744391942915,6.38985,1565.0,1564.8,0.03337]
[1744391943350,9.39018,1564.9,1564.8,0.03337]
[1744391943556,10.968183,1564.9,1564.8,0.03337]
[1744391944055,11.518183,1564.9,1564.8,0.03337]
[1744391944426,11.98767233,1564.9,1564.8,0.03337]
[1744391944670,12.77477233,1564.9,1564.8,0.03337]
[1744391945683,6.39222,1564.4,1564.1,0.05]
[1744391945842,19.41773,1564.3,1564.1,0.05]
[1744391946163,3.0,1564.2,1564.1,0.05]
[1744391946365,6.632,1564.3,1564.1,0.05]
[1744391946663,3.0,1564.4,1564.1,6.44326]
[1744391946965,9.632,1564.4,1564.2,0.8055]
[1744391947332,6.632,1564.4,1564.2,7.19848]
[1744391947542,3.0,1564.6,1564.2,7.19839]
[1744391947743,6.634,1564.7,1564.3,6.39243]
[1744391948079,6.634,1564.7,1564.4,6.39183]
[1744391948454,2.379203,1564.9,1564.5,6.39171]
[1744391948657,6.634,1564.7,1564.6,6.3914]
[1744391948838,6.634,1564.7,1564.4,6.39217]
[1744391949044,6.634,1564.7,1564.3,13.504863]
[1744391949367,13.02516,1564.7,1564.2,13.59144]
[1744391949965,13.02516,1564.7,1564.3,6.39256]
[1744391950143,13.02516,1564.7,1564.2,13.59138]
[1744391950553,13.0252,1564.7,1564.2,7.1985]
[1744391950871,14.32772,1564.7,1564.2,13.59141]
[1744391951038,20.7189,1564.7,1564.2,13.59141]
[1744391951241,20.71892,1564.7,1564.2,7.19841]
[1744391951635,14.3277,1564.7,1564.2,13.59129]
[1744391952347,7.93652,1564.7,1564.2,7.19838]
[1744391952553,6.39262,1564.4,1564.1,0.05]
[1744391952790,11.99944174,1564.6,1564.1,0.05]
[1744391952791,3.0,1564.2,1564.1,0.05]
[1744391953097,9.39304,1564.2,1564.1,0.05]
[1744391955085,14.20741974,1564.2,1564.1,0.05]
[1744391955249,12.85452197,1564.2,1564.1,0.05]
[1744391955956,6.46148197,1564.2,1564.1,0.05]
[1744391956290,9.39304,1564.2,1564.1,0.05]
[1744391957591,3.0,1564.2,1564.1,0.05]
[1744391957777,9.814,1564.2,1564.1,0.05]
[1744391957977,6.814,1564.2,1564.1,0.05]
[1744391958550,6.72539898,1564.4,1564.1,0.05]
[1744391958752,6.814,1564.3,1564.1,0.05]
[1744391958990,13.20764,1564.3,1564.1,0.05]
[1744391959152,6.39304,1564.2,1564.1,0.05]
[1744391959560,9.39304,1564.2,1564.1,0.05]
[1744391960569,9.94304,1564.2,1564.1,0.05]
[1744391960903,11.375591,1564.2,1564.1,0.05]
[1744391961063,12.139991,1564.2,1564.1,0.05]
[1744391962902,6.39541,1563.7,1563.4,0.827]
[1744391963074,6.07,1563.6,1563.4,0.827]
[1744391964198,6.07,1563.6,1563.4,7.22319]
[1744391964356,6.07,1563.6,1563.4,7.94555]
[1744391964562,6.07,1563.6,1563.4,14.34174]
[1744391964795,6.07,1563.6,1563.5,6.3959]
[1744391964996,6.07,1563.6,1563.4,7.22319]
[1744391965201,6.07,1563.6,1563.4,0.827]
[1744391965981,6.07,1563.6,1563.4,7.22327]
[1744391966398,6.07,1563.6,1563.4,0.827]
[1744391966608,7.3585,1563.6,1563.4,0.827]
[1744391967381,7.3585,1563.6,1563.4,7.22327]
[1744391967581,6.07,1563.6,1563.4,7.22327]
[1744391968210,6.07,1563.6,1563.4,0.827]
[1744391969071,12.4657,1563.6,1563.4,0.827]
[1744391969271,6.39604,1563.5,1563.1,7.22104]
[1744391969470,6.07,1563.4,1563.1,7.22089]
[1744391969705,6.07,1563.4,1563.2,6.39695]
[1744391970281,13.07336,1563.4,1563.1,0.8235]
[1744391970802,6.07,1563.3,1563.1,0.8235]
[1744391971965,6.39713,1563.2,1563.1,0.05]
[1744391972169,6.07,1563.3,1563.1,0.05]
[1744391972372,7.0377,1563.3,1563.1,0.05]
[1744391973106,7.0377,1563.3,1563.1,6.4473]
[1744391973107,6.07,1563.3,1563.1,6.4473]
[1744391973295,6.07,1563.3,1563.2,7.20753]
[1744391978584,6.07,1563.6,1563.2,13.60466]
[1744391979222,6.07,1563.6,1563.3,6.39671]
[1744391979523,12.4655,1563.6,1563.2,7.20753]
[1744391979729,7.956063,1563.6,1563.3,6.39669]
[1744391980387,7.956063,1563.6,1563.3,12.79338]
[1744391980585,6.07,1563.6,1563.2,7.20747]
[1744391980827,6.07,1563.6,1563.4,6.39612]
[1744391981027,6.07,1563.6,1563.4,12.79231]
[1744391981185,6.07,1563.6,1563.5,6.3959]
[1744391981391,6.07,1563.7,1563.6,6.39549]
[1744391981726,6.07,1563.7,1563.5,7.18812]
[1744391982022,6.07,1563.7,1563.5,13.5839]
[1744391982528,6.07,1563.7,1563.5,7.18812]
[1744391982823,6.07,1563.7,1563.6,6.39549]
[1744391984590,12.782,1563.9,1563.7,6.39476]
[1744391985105,12.782,1563.9,1563.7,12.78972]
[1744391985923,12.782,1563.9,1563.7,6.39476]
[1744391986819,12.782,1563.9,1563.7,12.78974]
[1744391987090,12.782,1563.9,1563.8,6.39467]
[1744391987396,12.782,1563.9,1563.8,7.21047]
[1744391987792,6.07,1564.0,1563.9,6.39427]
[1744391988128,7.502551,1564.2,1563.9,12.78843]
[1744391988515,7.502551,1564.2,1563.9,6.39416]
[1744391988825,7.502551,1564.2,1563.9,12.78832]
[1744391989003,7.502551,1564.2,1564.0,6.39386]
[1744391989332,7.502551,1564.2,1563.9,12.78832]
[1744391990013,7.502551,1564.2,1564.0,6.39373]
[1744391990214,7.502551,1564.2,1564.0,12.78747]
[1744391990518,7.502551,1564.2,1564.0,6.39373]
[1744391990851,7.502551,1564.2,1563.9,6.39415]
[1744391991015,0.7502551,1564.1,1563.8,0.8158]
[1744391991210,7.1439151,1564.1,1563.8,0.8158]
[1744391991410,6.39396,1564.0,1563.6,13.6004]
[1744391991634,7.82772951,1564.0,1563.7,6.39501]
[1744391991823,1.43376951,1564.0,1563.8,6.39464]
[1744391992149,1.43376951,1564.0,1563.7,12.79002]
[1744391992445,1.43376951,1564.0,1563.7,6.39501]
[1744391992619,1.43376951,1564.0,1563.7,12.78999]
[1744391993527,1.43376951,1564.0,1563.7,6.39498]
[1744391994229,1.43376951,1564.0,1563.7,6.39496]
[1744391995150,7.82766951,1564.0,1563.6,7.20496]
[1744391995351,6.85276695,1563.9,1563.4,6.39611]
[1744391995526,13.24995,1563.8,1563.4,12.7923]
[1744391995909,6.39523,1563.7,1563.3,13.58952]
[1744391996123,6.39523,1563.7,1563.4,6.39626]
[1744391996124,12.46523,1563.7,1563.4,6.39626]
[1744391997638,12.46523,1563.7,1563.3,7.19286]
[1744391997639,6.07,1563.6,1563.3,7.19286]
[1744391997832,6.07,1563.6,1563.5,6.3959]
[1744391998251,6.07,1563.6,1563.5,7.1708]
[1744391999261,6.07,1564.0,1563.8,7.22077]
[1744391999428,18.85712,1564.1,1563.8,0.8264]
[1744391999622,12.46345,1564.1,1563.8,0.8264]
[1744391999862,6.39396,1564.0,1563.7,6.39503]
[1744392000167,6.39396,1564.0,1563.7,6.39504]
[1744392000364,14.085975,1564.1,1563.8,6.39455]
[1744392000544,14.085975,1564.1,1563.7,6.39495]
[1744392000752,6.39428,1563.9,1563.6,6.39536]
[1744392001066,6.39519,1563.7,1563.4,6.3963]
[1744392001250,12.46519,1563.7,1563.4,6.3963]
[1744392001562,6.07,1563.7,1563.4,6.39625]
[1744392001861,12.46513,1563.7,1563.3,13.57176]
[1744392002160,12.46513,1563.7,1563.4,6.39619]
[1744392002347,12.46513,1563.7,1563.4,6.39629]
[1744392002348,8.035403,1563.7,1563.4,6.39629]
[1744392002662,6.07,1563.7,1563.4,12.79249]
[1744392002864,12.46518,1563.7,1563.4,6.3962]
[1744392003167,18.86047,1563.7,1563.3,7.17525]
[1744392003526,12.46518,1563.7,1563.4,6.39619]
[1744392003768,6.07,1563.7,1563.4,12.79238]
[1744392003940,6.07,1563.7,1563.4,6.39619]
[1744392005153,6.07,1563.7,1563.4,12.79237]
[1744392005354,12.46511,1563.7,1563.4,6.39618]
[1744392005695,12.46511,1563.7,1563.4,12.79238]
[1744392005849,12.46511,1563.7,1563.4,6.39618]
[1744392006248,6.07,1563.7,1563.4,12.79237]
[1744392006555,6.07,1563.7,1563.5,6.39585]
[1744392007080,6.07,1563.7,1563.5,6.39578]
[1744392007279,6.07,1563.7,1563.6,6.39549]
[1744392007654,6.07,1563.7,1563.6,8.485617]
[1744392008579,6.07,1563.7,1563.6,7.20649]
[1744392009084,6.07,1563.7,1563.3,6.39642]
[1744392009085,12.46512,1563.7,1563.4,6.3961]
[1744392009378,6.07,1563.7,1563.4,12.79229]
[1744392009688,6.07,1563.7,1563.3,7.16635]
[1744392009689,13.22151,1563.7,1563.3,7.16635]
[1744392009892,13.22151,1563.7,1563.3,13.563]
[1744392009893,19.61674,1563.7,1563.3,13.563]
[1744392010181,19.61674,1563.7,1563.3,13.56295]
[1744392010182,19.61688,1563.7,1563.3,13.56295]
[1744392010380,6.39559,1563.6,1563.2,6.39702]
[1744392010554,12.79127,1563.6,1563.2,12.79404]
[1744392010755,12.46559,1563.6,1563.2,12.79404]
[1744392011084,12.46559,1563.6,1563.3,6.39672]
[1744392011286,14.6234734,1563.6,1563.3,6.39672]
[1744392011779,14.6234734,1563.6,1563.2,6.39702]
[1744392011988,14.6234734,1563.6,1563.3,6.39665]
[1744392012485,21.0191834,1563.6,1563.2,6.39702]
[1744392012688,27.7301834,1563.6,1563.2,6.39702]
[1744392012871,27.7303734,1563.6,1563.2,12.79401]
[1744392013084,6.39693,1563.3,1563.1,0.05]
[1744392013251,0.8044,1563.4,1563.1,0.05]
[1744392013252,6.07,1563.2,1563.1,0.05]
[1744392016785,12.46684,1563.3,1563.1,0.05]
[1744392016999,6.07,1563.3,1563.1,0.05]
[1744392017206,6.07,1563.3,1563.2,6.39713]
[1744392017382,6.07,1563.4,1563.2,8.43158]
[1744392017695,19.90906,1563.8,1563.5,6.39578]
[1744392018055,6.39509,1563.7,1563.4,6.39607]
[1744392018255,13.5143,1563.8,1563.5,6.39572]
[1744392018456,12.712,1563.8,1563.7,6.39508]
[1744392018656,12.712,1563.8,1563.6,6.39514]
[1744392018854,12.712,1563.8,1563.5,6.39579]
[1744392019177,12.712,1563.8,1563.6,6.39547]
[1744392019591,12.712,1563.8,1563.7,6.39508]
[1744392019900,12.712,1563.8,1563.6,6.39547]
[1744392020596,12.712,1563.8,1563.5,6.39577]
[1744392020798,19.91448,1563.8,1563.5,6.39577]
[1744392021298,13.5197,1563.8,1563.5,12.79156]
[1744392022065,13.5197,1563.8,1563.6,6.39547]
[1744392022302,21.905879,1563.8,1563.5,6.39577]
[1744392022597,21.905879,1563.8,1563.5,12.79156]
[1744392022799,6.07,1563.7,1563.5,6.39577]
[1744392022997,6.07,1563.7,1563.6,6.39549]
[1744392024105,6.07,1563.7,1563.4,7.1462]
[1744392024286,6.39551,1563.6,1563.3,6.3966]
[1744392024681,6.39551,1563.6,1563.3,12.7932]
[1744392024896,7.14786,1563.7,1563.4,12.79252]
[1744392025097,2.771166,1563.7,1563.2,0.7974]
[1744392025390,2.771166,1563.7,1563.1,12.84485]
[1744392025391,6.39633,1563.4,1563.1,12.84485]
[1744392025591,6.39592,1563.5,1563.2,6.39701]
[1744392025797,12.7921,1563.5,1563.2,6.39701]
[1744392026191,6.39592,1563.5,1563.2,6.39701]
[1744392026403,6.39592,1563.5,1563.1,6.4474]
[1744392026608,6.39592,1563.5,1563.1,0.05]
[1744392026609,6.3968,1563.3,1563.1,0.05]
[1744392026780,7.2267,1563.3,1563.1,0.05]
[1744392026989,9.94713,1563.2,1563.1,0.05]
[1744392027194,10.77703,1563.2,1563.1,0.05]
[1744392027493,3.8299,1563.2,1563.1,0.05]
[1744392027799,11.889396,1563.2,1563.1,0.05]
[1744392030732,12.439396,1563.2,1563.1,0.05]
[1744392031387,11.889396,1563.2,1563.1,0.05]